[Event "EUSA-ch Women 2019"]
[Site "Budapest"]
[Date "2019.07.25"]
[Round "1.7"]
[White "Lach, Aleksandra"]
[Black "Temel, Burcu Melis"]
[Result "1-0"]
[ECO "B30"]
[WhiteElo "2173"]
[BlackElo "1790"]
[Annotator "NA"]
[PlyCount "97"]
[EventDate "2019.07.23"]
[EventType "team-tourn"]
[EventCountry "HUN"]
[SourceTitle "playchess.com"]
[Source "ChessBase"]
[SourceQuality "1"]
[TimeControl "1500+10"]

1. e4 {[%emt 0:00:00]} c5 {[%emt 0:00:00]} 2. Nf3 {[%emt 0:00:05]} Nc6 {[%emt 0:00:00]} 3. d3 {[%emt 0:00:33]} e6 {[%emt 0:00:06]} 4. Nbd2 {[%emt 0:00:37]} g6 {[%emt 0:00:09]} 5. g3 {[%emt 0:00:14]} Bg7 {[%emt 0:00:03]} 6. c3 {[%emt 0:00:20]} Nge7 {[%emt 0:00:09]} 7. Bg2 {[%emt 0:00:03]} O-O {[%emt 0:00:05]} 8. O-O {[%emt 0:00:25]} d5 {[%emt 0:00:13]} 9. Qe2 {[%emt 0:00:52]} Rb8 {[%emt 0:00:13]} 10. Rd1 {[%emt 0:01:06]} b5 {[%emt 0:00:48]} 11. Nb3 {[%emt 0:01:51]} b4 {[%emt 0:03:32]} 12. cxb4 {[%emt 0:06:49]} cxb4 {[%emt 0:00:32]} 13. e5 {[%emt 0:00:32]} Ba6 {[%emt 0:02:24]} 14. Bf4 {[%emt 0:05:13]} h6 {[%emt 0:02:29]} 15. h4 {[%emt 0:00:16]} Nf5 {[%emt 0:00:03]} 16. Rac1 {[%emt 0:01:18]} Bb5 {[%emt 0:03:01]} 17. Nc5 {[%emt 0:01:44]} Qe7 {[%emt 0:02:21]} 18. Qd2 {[%emt 0:02:58]} Rfc8 {[%emt 0:00:49]} 19. d4 {[%emt 0:00:39]} a5 {[%emt 0:00:56]} 20. b3 {[%emt 0:01:07]} Kh7 {[%emt 0:01:29]} 21. Be3 {[%emt 0:00:01]} Na7 {[%emt 0:01:02]} 22. a4 {[%emt 0:00:48]} bxa3 {[%emt 0:01:40]} 23. Qxa5 {[%emt 0:00:01]} Nc6 {[%emt 0:00:28]} 24. Qxa3 {[%emt 0:00:03]} Ra8 {[%emt 0:00:01]} 25. Qb2 {[%emt 0:00:01]} Nb4 {[%emt 0:00:08]} 26. Qd2 {[%emt 0:00:17]} Na6 {[%emt 0:01:38]} 27. b4 {[%emt 0:00:26]} Nxe3 {[%emt 0:00:56]} 28. fxe3 {[%emt 0:00:03]} Nc7 {[%emt 0:00:35]} 29. Ra1 {[%emt 0:00:19]} Bc4 {[%emt 0:00:23]} 30. Bf1 {[%emt 0:00:08]} Bxf1 {[%emt 0:00:01]} 31. Rxf1 {[%emt 0:00:14]} Rcb8 {[%emt 0:00:54]} 32. Rfb1 {[%emt 0:00:31]} Nb5 {[%emt 0:00:15]} 33. Qd3 {[%emt 0:00:09]} Qe8 {[%emt 0:01:07]} 34. Nd2 {[%emt 0:00:01]} f6 {[%emt 0:00:19]} 35. exf6 {[%emt 0:00:03]} Bxf6 {[%emt 0:00:01]} 36. h5 {[%emt 0:00:31]} Nd6 {[%emt 0:00:02]} 37. Qxg6+ {[%emt 0:00:02]} Qxg6 {[%emt 0:00:01]} 38. hxg6+ {[%emt 0:00:01]} Kxg6 {[%emt 0:00:02]} 39. Nxe6 {[%emt 0:00:13]} Rxa1 {[%emt 0:00:08]} 40. Rxa1 {[%emt 0:00:00]} Rxb4 {[%emt 0:00:01]} 41. Nf4+ {[%emt 0:00:08]} Kg7 {[%emt 0:00:28]} 42. Ra7+ {[%emt 0:00:17]} Nf7 {[%emt 0:00:44]} 43. Nf3 {[%emt 0:00:30]} Rb1+ {[%emt 0:00:49]} 44. Kg2 {[%emt 0:00:01]} Rb2+ {[%emt 0:00:12]} 45. Kh3 {[%emt 0:00:09]} Kg8 {[%emt 0:00:01]} 46. Nxd5 {[%emt 0:00:14]} Bg5 {[%emt 0:00:18]} 47. Kg4 {[%emt 0:00:12]} Re2 {[%emt 0:00:30]} 48. Nxg5 {[%emt 0:00:02]} Nxg5 {[%emt 0:00:06]} 49. Kh5 {[%emt 0:00:10]} 1-0

[Event "EUSA-ch Women 2019"]
[Site "Budapest"]
[Date "2019.07.25"]
[Round "1.8"]
[White "Gundogan, Sinem Cagla"]
[Black "Jedrocha, Katarzyna"]
[Result "1-0"]
[ECO "B50"]
[WhiteElo "1806"]
[BlackElo "1943"]
[Annotator "NA"]
[PlyCount "49"]
[EventDate "2019.07.23"]
[EventType "team-tourn"]
[EventCountry "HUN"]
[SourceTitle "playchess.com"]
[Source "ChessBase"]
[SourceQuality "1"]
[TimeControl "1500+10"]

1. e4 {[%emt 0:00:00]} c5 {[%emt 0:00:00]} 2. Nf3 {[%emt 0:00:00]} d6 {[%emt 0:00:00]} 3. g3 {[%emt 0:00:00]} Nf6 {[%emt 0:00:02]} 4. d3 {[%emt 0:00:00]} g6 {[%emt 0:00:22]} 5. Bg2 {[%emt 0:00:02]} Bg7 {[%emt 0:00:05]} 6. O-O {[%emt 0:00:12]} O-O {[%emt 0:00:04]} 7. Nbd2 {[%emt 0:00:14]} Nc6 {[%emt 0:00:27]} 8. c3 {[%emt 0:00:18]} Qc7 {[%emt 0:00:36]} 9. Re1 {[%emt 0:00:08]} b5 {[%emt 0:00:59]} 10. e5 {[%emt 0:01:54]} Nd7 {[%emt 0:02:59]} 11. exd6 {[%emt 0:01:58]} exd6 {[%emt 0:00:10]} 12. Ne4 {[%emt 0:00:02]} Bb7 {[%emt 0:02:03]} 13. Bf4 {[%emt 0:00:01]} Nde5 {[%emt 0:01:36]} 14. Nxc5 {[%emt 0:03:19]} dxc5 {[%emt 0:01:55]} 15. Nxe5 {[%emt 0:00:02]} Bxe5 {[%emt 0:01:58]} 16. Bxe5 {[%emt 0:00:02]} Nxe5 {[%emt 0:00:10]} 17. Bxb7 {[%emt 0:00:03]} Qxb7 {[%emt 0:01:39]} 18. Rxe5 {[%emt 0:00:03]} Rac8 {[%emt 0:00:46]} 19. Qe2 {[%emt 0:00:09]} Rc7 {[%emt 0:00:46]} 20. Re1 {[%emt 0:00:12]} Qc6 {[%emt 0:00:54]} 21. h4 {[%emt 0:01:53]} h5 {[%emt 0:01:56]} 22. Qe3 {[%emt 0:02:19]} Kg7 {[%emt 0:01:27]} 23. d4 {[%emt 0:00:22]} cxd4 {[%emt 0:01:11]} 24. Qxd4 {[%emt 0:01:28]} Rd7 {[%emt 0:00:02]} 25. Rd5+ {[%emt 0:00:08]} 1-0

[Event "EUSA-ch Women 2019"]
[Site "Budapest"]
[Date "2019.07.25"]
[Round "2.7"]
[White "Voit, Daria"]
[Black "Varga, Melinda"]
[Result "1-0"]
[ECO "D45"]
[WhiteElo "2339"]
[BlackElo "2121"]
[Annotator "NA"]
[PlyCount "77"]
[EventDate "2019.07.23"]
[EventType "team-tourn"]
[EventCountry "HUN"]
[SourceTitle "playchess.com"]
[Source "ChessBase"]
[SourceQuality "1"]
[TimeControl "1500+10"]

1. d4 {[%emt 0:00:00]} d5 {[%emt 0:00:00]} 2. c4 {[%emt 0:00:00]} c6 {[%emt 0:00:00]} 3. Nc3 {[%emt 0:00:02]} Nf6 {[%emt 0:00:00]} 4. e3 {[%emt 0:00:01]} e6 {[%emt 0:00:18]} 5. Nf3 {[%emt 0:00:02]} Nbd7 {[%emt 0:00:26]} 6. Qc2 {[%emt 0:00:02]} a6 {[%emt 0:01:46]} 7. Bd3 {[%emt 0:00:38]} dxc4 {[%emt 0:00:30]} 8. Bxc4 {[%emt 0:00:02]} b5 {[%emt 0:00:16]} 9. Be2 {[%emt 0:00:02]} Bb7 {[%emt 0:00:54]} 10. O-O {[%emt 0:01:58]} Bd6 {[%emt 0:00:19]} 11. e4 {[%emt 0:00:07]} e5 {[%emt 0:00:45]} 12. Rd1 {[%emt 0:04:07]} Qc7 {[%emt 0:01:22]} 13. g3 {[%emt 0:00:34]} O-O {[%emt 0:02:33]} 14. dxe5 {[%emt 0:02:53]} Nxe5 {[%emt 0:00:17]} 15. Bg5 {[%emt 0:00:08]} Nxf3+ {[%emt 0:01:52]} 16. Bxf3 {[%emt 0:00:06]} Nd7 {[%emt 0:01:37]} 17. Be3 {[%emt 0:01:34]} Ne5 {[%emt 0:00:39]} 18. Be2 {[%emt 0:00:04]} Rae8 {[%emt 0:02:33]} 19. f4 {[%emt 0:04:39]} Nd7 {[%emt 0:00:26]} 20. e5 {[%emt 0:00:59]} Bc5 {[%emt 0:01:40]} 21. Bxc5 Nxc5 {[%emt 0:00:01]} 22. Bf3 {[%emt 0:00:25]} Ne6 {[%emt 0:00:26]} 23. Qf2 {[%emt 0:02:19]} c5 {[%emt 0:00:53]} 24. Nd5 {[%emt 0:00:11]} Qb8 {[%emt 0:00:25]} 25. Rac1 {[%emt 0:00:29]} Kh8 {[%emt 0:01:43]} 26. Bg2 {[%emt 0:01:11]} Rd8 {[%emt 0:00:36]} 27. Ne7 {[%emt 0:01:16]} Nd4 {[%emt 0:01:20]} 28. Rxc5 {[%emt 0:01:23]} Qa7 {[%emt 0:01:35]} 29. b4 {[%emt 0:00:40]} Bxg2 {[%emt 0:01:20]} 30. Rxd4 {[%emt 0:01:06]} Qa8 {[%emt 0:00:38]} 31. Nf5 {[%emt 0:00:22]} Be4 {[%emt 0:00:23]} 32. Nd6 {[%emt 0:00:46]} Bc6 {[%emt 0:00:56]} 33. Rxc6 {[%emt 0:00:35]} Qxc6 {[%emt 0:00:02]} 34. Nxf7+ {[%emt 0:00:01]} Kg8 {[%emt 0:00:02]} 35. Nxd8 {[%emt 0:00:04]} Qc1+ {[%emt 0:00:03]} 36. Kg2 {[%emt 0:00:05]} g5 {[%emt 0:00:42]} 37. f5 {[%emt 0:01:18]} Qc8 {[%emt 0:00:40]} 38. Ne6 {[%emt 0:00:22]} Qc6+ {[%emt 0:00:01]} 39. Kh3 {[%emt 0:00:29]} 1-0

[Event "EUSA-ch Women 2019"]
[Site "Budapest"]
[Date "2019.07.25"]
[Round "2.8"]
[White "Miseta, Nora"]
[Black "Shuvalova, Polina"]
[Result "0-1"]
[ECO "B18"]
[WhiteElo "1762"]
[BlackElo "2418"]
[Annotator "NA"]
[PlyCount "70"]
[EventDate "2019.07.23"]
[EventType "team-tourn"]
[EventCountry "HUN"]
[SourceTitle "playchess.com"]
[Source "ChessBase"]
[SourceQuality "1"]
[TimeControl "1500+10"]

1. e4 {[%emt 0:00:00]} c6 {[%emt 0:00:00]} 2. d4 {[%emt 0:00:06]} d5 {[%emt 0:00:00]} 3. Nc3 {[%emt 0:00:26]} dxe4 {[%emt 0:00:04]} 4. Nxe4 {[%emt 0:00:04]} Bf5 {[%emt 0:00:03]} 5. Nc5 {[%emt 0:00:32]} b6 {[%emt 0:00:51]} 6. Nb3 {[%emt 0:00:06]} Nf6 {[%emt 0:00:09]} 7. Nf3 {[%emt 0:00:18]} e6 {[%emt 0:00:05]} 8. Bd3 {[%emt 0:00:24]} Bxd3 {[%emt 0:00:19]} 9. Qxd3 {[%emt 0:00:07]} Be7 {[%emt 0:00:34]} 10. O-O {[%emt 0:00:19]} O-O {[%emt 0:00:03]} 11. Bg5 {[%emt 0:00:17]} Nbd7 {[%emt 0:00:06]} 12. Rad1 {[%emt 0:00:37]} h6 {[%emt 0:00:55]} 13. Bh4 {[%emt 0:00:17]} Qc7 {[%emt 0:00:15]} 14. Bg3 {[%emt 0:00:41]} Qb7 {[%emt 0:00:02]} 15. Rfe1 {[%emt 0:01:21]} Rfd8 {[%emt 0:00:06]} 16. Qc3 {[%emt 0:02:23]} a5 {[%emt 0:01:04]} 17. a3 {[%emt 0:00:47]} Rac8 {[%emt 0:00:22]} 18. Ne5 {[%emt 0:01:33]} a4 {[%emt 0:00:47]} 19. Nd2 {[%emt 0:00:47]} c5 {[%emt 0:00:09]} 20. Qf3 {[%emt 0:05:40]} Qxf3 {[%emt 0:00:50]} 21. Ndxf3 {[%emt 0:00:03]} cxd4 {[%emt 0:01:03]} 22. Nxd4 {[%emt 0:00:04]} Nxe5 {[%emt 0:00:03]} 23. Bxe5 {[%emt 0:00:16]} Ng4 {[%emt 0:00:32]} 24. Bg3 {[%emt 0:01:05]} Bf6 {[%emt 0:00:47]} 25. Re4 {[%emt 0:03:51]} Rxc2 {[%emt 0:00:58]} 26. Rxg4 {[%emt 0:00:18]} Rxd4 {[%emt 0:01:02]} 27. Rgxd4 {[%emt 0:00:37]} Bxd4 {[%emt 0:00:02]} 28. h3 {[%emt 0:00:37]} e5 {[%emt 0:00:07]} 29. Kh1 {[%emt 0:00:34]} g5 {[%emt 0:00:34]} 30. h4 {[%emt 0:00:34]} Kg7 {[%emt 0:01:24]} 31. hxg5 {[%emt 0:00:36]} hxg5 {[%emt 0:00:03]} 32. f4 {[%emt 0:00:10]} gxf4 {[%emt 0:01:16]} 33. Bxf4 {[%emt 0:00:06]} Rxb2 {[%emt 0:00:23]} 34. Bc1 {[%emt 0:00:58]} Ra2 {[%emt 0:00:20]} 35. Kh2 {[%emt 0:00:41]} Ra1 {[%emt 0:00:15]} 0-1

[Event "EUSA-ch Women 2019"]
[Site "Budapest"]
[Date "2019.07.25"]
[Round "3.7"]
[White "Juhasz, Barbara"]
[Black "Voit, Daria"]
[Result "1/2-1/2"]
[ECO "C00"]
[WhiteElo "2171"]
[BlackElo "2339"]
[Annotator "NA"]
[PlyCount "144"]
[EventDate "2019.07.23"]
[EventType "team-tourn"]
[EventCountry "HUN"]
[SourceTitle "playchess.com"]
[Source "ChessBase"]
[SourceQuality "1"]
[TimeControl "1500+10"]

1. e4 {[%emt 0:00:00]} e6 {[%emt 0:00:00]} 2. Qe2 {[%emt 0:00:00]} c5 {[%emt 0:00:12]} 3. Nf3 {[%emt 0:00:03]} Nc6 {[%emt 0:00:02]} 4. g3 {[%emt 0:00:02]} Be7 {[%emt 0:00:10]} 5. Bg2 {[%emt 0:00:02]} Nf6 {[%emt 0:00:09]} 6. O-O {[%emt 0:00:04]} d5 {[%emt 0:00:05]} 7. d3 {[%emt 0:00:05]} O-O {[%emt 0:00:03]} 8. Re1 {[%emt 0:00:13]} b5 {[%emt 0:00:48]} 9. e5 {[%emt 0:01:07]} Nd7 {[%emt 0:00:02]} 10. h4 {[%emt 0:00:02]} Bb7 {[%emt 0:01:04]} 11. Bf4 {[%emt 0:00:05]} Qc7 {[%emt 0:00:17]} 12. Nbd2 {[%emt 0:00:04]} Rfc8 {[%emt 0:00:11]} 13. Nf1 {[%emt 0:00:10]} Bf8 {[%emt 0:00:19]} 14. N1h2 {[%emt 0:00:08]} h6 {[%emt 0:01:56]} 15. h5 {[%emt 0:05:00]} d4 {[%emt 0:02:36]} 16. g4 {[%emt 0:00:20]} Ne7 {[%emt 0:00:58]} 17. Bh3 {[%emt 0:03:38]} g5 {[%emt 0:01:41]} 18. hxg6 {[%emt 0:00:08]} Nxg6 {[%emt 0:00:01]} 19. Bg3 {[%emt 0:00:58]} Bg7 {[%emt 0:01:02]} 20. Bg2 {[%emt 0:02:29]} Ndf8 {[%emt 0:01:16]} 21. Nf1 {[%emt 0:01:37]} Bd5 {[%emt 0:02:57]} 22. N1d2 {[%emt 0:02:27]} Qb7 {[%emt 0:00:02]} 23. Qf1 {[%emt 0:01:03]} Nd7 {[%emt 0:02:26]} 24. Ne4 {[%emt 0:05:05]} Qc6 {[%emt 0:00:13]} 25. g5 {[%emt 0:00:02]} h5 {[%emt 0:00:22]} 26. Ned2 {[%emt 0:00:20]} Rab8 {[%emt 0:00:52]} 27. Qe2 {[%emt 0:00:36]} Ndf8 {[%emt 0:01:21]} 28. Kh2 {[%emt 0:00:58]} Nd7 {[%emt 0:03:13]} 29. Nh4 {[%emt 0:01:56]} Nxh4 {[%emt 0:00:12]} 30. Bxd5 {[%emt 0:00:26]} Qxd5 {[%emt 0:00:03]} 31. Bxh4 {[%emt 0:00:05]} Qxe5+ {[%emt 0:03:15]} 32. Bg3 {[%emt 0:00:04]} Qxe2 {[%emt 0:00:03]} 33. Rxe2 {[%emt 0:00:01]} Rb6 {[%emt 0:00:13]} 34. a4 {[%emt 0:00:34]} a6 {[%emt 0:01:01]} 35. axb5 {[%emt 0:00:02]} axb5 {[%emt 0:00:01]} 36. Ra7 {[%emt 0:00:14]} Nf8 {[%emt 0:00:02]} 37. Ne4 {[%emt 0:00:04]} Rcc6 {[%emt 0:00:27]} 38. Re1 {[%emt 0:00:27]} c4 {[%emt 0:00:03]} 39. Rea1 {[%emt 0:00:05]} cxd3 {[%emt 0:00:21]} 40. cxd3 {[%emt 0:00:00]} e5 {[%emt 0:00:27]} 41. Ra8 {[%emt 0:00:14]} Rb7 {[%emt 0:00:08]} 42. b4 {[%emt 0:00:17]} Kh7 {[%emt 0:00:07]} 43. Nc5 {[%emt 0:00:04]} Re7 {[%emt 0:00:15]} 44. Rb8 {[%emt 0:00:12]} Kg6 {[%emt 0:00:29]} 45. Rxb5 {[%emt 0:00:28]} Kxg5 {[%emt 0:00:17]} 46. f4+ {[%emt 0:00:24]} Kg4 {[%emt 0:00:29]} 47. fxe5 {[%emt 0:00:09]} Bxe5 {[%emt 0:00:20]} 48. Rg1 {[%emt 0:00:05]} Kf3 {[%emt 0:00:05]} 49. Rf1+ {[%emt 0:00:05]} Kg4 {[%emt 0:00:05]} 50. Rg1 {[%emt 0:00:15]} Bxg3+ {[%emt 0:00:13]} 51. Rxg3+ {[%emt 0:00:00]} Kf4 {[%emt 0:00:01]} 52. Ne4 {[%emt 0:00:09]} Rc2+ {[%emt 0:00:03]} 53. Kh3 {[%emt 0:00:01]} Re5 {[%emt 0:00:18]} 54. Rb7 {[%emt 0:00:07]} f5 {[%emt 0:00:12]} 55. Nf6 {[%emt 0:00:15]} Re6 {[%emt 0:00:21]} 56. Nxh5+ {[%emt 0:00:02]} Ke5 {[%emt 0:00:00]} 57. Rb5+ {[%emt 0:00:03]} Kd6 {[%emt 0:00:04]} 58. Rxf5 {[%emt 0:00:01]} Nd7 {[%emt 0:00:09]} 59. Rf4 {[%emt 0:00:04]} Kd5 {[%emt 0:00:01]} 60. Rg5+ {[%emt 0:00:14]} Re5 {[%emt 0:00:02]} 61. Rxe5+ {[%emt 0:00:04]} Nxe5 {[%emt 0:00:00]} 62. Nf6+ {[%emt 0:00:04]} Ke6 {[%emt 0:00:02]} 63. Ng4 {[%emt 0:00:06]} Nxd3 {[%emt 0:00:16]} 64. Rxd4 {[%emt 0:00:01]} Nf2+ {[%emt 0:00:19]} 65. Kg3 {[%emt 0:00:09]} Nxg4 {[%emt 0:00:03]} 66. Rxg4 {[%emt 0:00:06]} Kd5 {[%emt 0:00:04]} 67. Kf3 {[%emt 0:00:05]} Rc4 {[%emt 0:00:15]} 68. Rg5+ {[%emt 0:00:11]} Kc6 {[%emt 0:00:01]} 69. b5+ {[%emt 0:00:02]} Kb6 {[%emt 0:00:01]} 70. Ke3 {[%emt 0:00:01]} Rc5 {[%emt 0:00:02]} 71. Rxc5 {[%emt 0:00:02]} Kxc5 {[%emt 0:00:01]} 72. b6 {[%emt 0:00:01]} Kxb6 {[%emt 0:00:01]} 1/2-1/2

[Event "EUSA-ch Women 2019"]
[Site "Budapest"]
[Date "2019.07.25"]
[Round "3.8"]
[White "Shuvalova, Polina"]
[Black "Kubik, Anna Zsofia"]
[Result "1-0"]
[ECO "A12"]
[WhiteElo "2418"]
[BlackElo "1592"]
[Annotator "NA"]
[PlyCount "47"]
[EventDate "2019.07.23"]
[EventType "team-tourn"]
[EventCountry "HUN"]
[SourceTitle "playchess.com"]
[Source "ChessBase"]
[SourceQuality "1"]
[TimeControl "1500+10"]

1. c4 {[%emt 0:00:13]} c6 {[%emt 0:00:14]} 2. Nf3 {[%emt 0:00:29]} d5 {[%emt 0:00:49]} 3. b3 {[%emt 0:00:06]} Bf5 {[%emt 0:00:21]} 4. d3 {[%emt 0:00:20]} e6 {[%emt 0:00:44]} 5. g3 {[%emt 0:00:09]} Qf6 {[%emt 0:01:56]} 6. d4 {[%emt 0:00:47]} Bxb1 {[%emt 0:02:19]} 7. Rxb1 {[%emt 0:00:03]} Bb4+ {[%emt 0:00:11]} 8. Bd2 {[%emt 0:00:09]} Bxd2+ {[%emt 0:00:22]} 9. Qxd2 {[%emt 0:00:03]} Nd7 {[%emt 0:00:22]} 10. Bg2 {[%emt 0:00:09]} Ne7 {[%emt 0:00:07]} 11. O-O {[%emt 0:00:06]} O-O {[%emt 0:00:02]} 12. Rfe1 {[%emt 0:00:54]} Rfe8 {[%emt 0:00:21]} 13. Rbd1 {[%emt 0:01:07]} Rad8 {[%emt 0:01:51]} 14. Qc1 {[%emt 0:00:43]} e5 {[%emt 0:01:28]} 15. dxe5 {[%emt 0:03:35]} Nxe5 {[%emt 0:00:08]} 16. Nxe5 {[%emt 0:00:21]} Qxe5 {[%emt 0:00:02]} 17. cxd5 {[%emt 0:00:23]} Nxd5 {[%emt 0:00:20]} 18. Qc5 {[%emt 0:00:11]} Qc3 {[%emt 0:05:34]} 19. Qxa7 {[%emt 0:01:37]} Nb4 {[%emt 0:03:51]} 20. Qxb7 {[%emt 0:03:17]} Nc2 {[%emt 0:02:37]} 21. Rf1 {[%emt 0:00:23]} Ne3 {[%emt 0:01:22]} 22. fxe3 {[%emt 0:00:20]} Qxe3+ {[%emt 0:00:02]} 23. Kh1 {[%emt 0:00:01]} Rxd1 {[%emt 0:00:23]} 24. Qxf7+ {[%emt 0:00:11]} 1-0

[Event "EUSA-ch Women 2019"]
[Site "Budapest"]
[Date "2019.07.26"]
[Round "4"]
[White "Terbe, Zsuzsanna"]
[Black "Juhasz, Barbara"]
[Result "1-0"]
[ECO "A46"]
[WhiteElo "2160"]
[BlackElo "2171"]
[Annotator "NA"]
[PlyCount "119"]
[EventDate "2019.07.23"]
[EventType "team-tourn"]
[EventCountry "HUN"]
[SourceTitle "playchess.com"]
[Source "ChessBase"]
[SourceQuality "1"]
[TimeControl "1500+10"]

1. d4 {[%emt 0:00:00]} Nf6 {[%emt 0:00:05]} 2. Nf3 {[%emt 0:00:00]} d5 {[%emt 0:00:21]} 3. g3 {[%emt 0:00:09]} g6 {[%emt 0:00:56]} 4. Bg2 {[%emt 0:00:02]} Bg7 {[%emt 0:00:02]} 5. c4 {[%emt 0:00:02]} c6 {[%emt 0:00:09]} 6. cxd5 {[%emt 0:00:03]} cxd5 {[%emt 0:00:02]} 7. Nc3 {[%emt 0:00:01]} O-O {[%emt 0:00:06]} 8. Ne5 {[%emt 0:00:03]} Nc6 {[%emt 0:00:21]} 9. O-O {[%emt 0:00:11]} Qb6 {[%emt 0:06:55]} 10. Nxc6 {[%emt 0:01:52]} bxc6 {[%emt 0:02:55]} 11. Na4 {[%emt 0:00:12]} Qd8 {[%emt 0:00:02]} 12. Bf4 {[%emt 0:00:24]} Nh5 {[%emt 0:00:11]} 13. Be3 {[%emt 0:00:02]} e5 {[%emt 0:00:23]} 14. dxe5 {[%emt 0:00:15]} Bxe5 {[%emt 0:00:01]} 15. Rc1 {[%emt 0:00:20]} Bd7 {[%emt 0:05:04]} 16. Bd4 {[%emt 0:00:21]} Re8 {[%emt 0:01:53]} 17. Bxe5 {[%emt 0:00:22]} Rxe5 {[%emt 0:00:01]} 18. Nc5 {[%emt 0:00:28]} Nf6 {[%emt 0:00:14]} 19. Bf3 {[%emt 0:01:05]} Bh3 {[%emt 0:01:26]} 20. Re1 {[%emt 0:00:08]} Rc8 {[%emt 0:00:26]} 21. Nd3 {[%emt 0:00:29]} Re8 {[%emt 0:00:12]} 22. Qa4 {[%emt 0:00:12]} Bd7 {[%emt 0:01:48]} 23. Nc5 {[%emt 0:00:48]} Rc7 {[%emt 0:00:38]} 24. Red1 {[%emt 0:01:15]} Bh3 {[%emt 0:04:17]} 25. b3 {[%emt 0:01:36]} Rc8 {[%emt 0:00:03]} 26. Nd3 {[%emt 0:03:48]} Qd7 {[%emt 0:00:25]} 27. Qd4 {[%emt 0:00:40]} Qe7 {[%emt 0:00:12]} 28. Nc5 {[%emt 0:01:49]} Bf5 {[%emt 0:00:06]} 29. Qh4 {[%emt 0:01:31]} h5 {[%emt 0:00:05]} 30. Qg5 {[%emt 0:00:12]} Kg7 {[%emt 0:00:13]} 31. h4 {[%emt 0:00:07]} Bg4 {[%emt 0:00:14]} 32. Bxg4 {[%emt 0:00:46]} Nxg4 {[%emt 0:00:02]} 33. Qxe7 {[%emt 0:00:04]} Rxe7 {[%emt 0:00:01]} 34. e3 {[%emt 0:00:06]} Nf6 {[%emt 0:00:07]} 35. Rd2 {[%emt 0:00:39]} Ne4 {[%emt 0:00:17]} 36. Nxe4 {[%emt 0:00:10]} Rxe4 {[%emt 0:00:04]} 37. Rxd5 {[%emt 0:00:12]} Rc7 {[%emt 0:00:16]} 38. Rd6 {[%emt 0:00:12]} c5 {[%emt 0:00:04]} 39. Rd5 {[%emt 0:00:45]} c4 {[%emt 0:00:18]} 40. Kg2 {[%emt 0:01:07]} c3 {[%emt 0:00:08]} 41. Rd3 {[%emt 0:00:06]} c2 {[%emt 0:00:04]} 42. Rd2 {[%emt 0:00:01]} a5 {[%emt 0:00:20]} 43. Rdxc2 {[%emt 0:00:02]} Rxc2 {[%emt 0:00:04]} 44. Rxc2 {[%emt 0:00:01]} a4 {[%emt 0:00:00]} 45. Rc4 {[%emt 0:00:10]} Rxc4 {[%emt 0:00:07]} 46. bxc4 {[%emt 0:00:03]} Kf6 {[%emt 0:00:02]} 47. Kf3 {[%emt 0:00:05]} Ke5 {[%emt 0:00:06]} 48. Ke2 {[%emt 0:00:06]} f6 {[%emt 0:00:44]} 49. Kd3 {[%emt 0:00:02]} g5 {[%emt 0:00:01]} 50. a3 {[%emt 0:01:32]} g4 {[%emt 0:00:17]} 51. e4 {[%emt 0:00:05]} f5 {[%emt 0:00:16]} 52. exf5 {[%emt 0:00:02]} Kxf5 {[%emt 0:00:00]} 53. Kd4 {[%emt 0:00:02]} Ke6 {[%emt 0:00:01]} 54. c5 {[%emt 0:00:05]} Ke7 {[%emt 0:00:01]} 55. Kc4 {[%emt 0:00:02]} Ke6 {[%emt 0:00:36]} 56. Kb5 {[%emt 0:00:05]} Ke5 {[%emt 0:00:02]} 57. c6 {[%emt 0:00:02]} Ke4 {[%emt 0:00:01]} 58. c7 {[%emt 0:00:01]} Kf3 {[%emt 0:00:01]} 59. c8=Q {[%emt 0:00:02]} Kxf2 {[%emt 0:00:02]} 60. Qc7 {[%emt 0:00:03]} 1-0

[Event "EUSA-ch Women 2019"]
[Site "Budapest"]
[Date "2019.07.26"]
[Round "4"]
[White "Kubik, Anna Zsofia"]
[Black "Varga, Klara"]
[Result "0-1"]
[ECO "A45"]
[WhiteElo "1592"]
[BlackElo "2146"]
[Annotator "NA"]
[PlyCount "76"]
[EventDate "2019.07.23"]
[EventType "team-tourn"]
[EventCountry "HUN"]
[SourceTitle "playchess.com"]
[Source "ChessBase"]
[SourceQuality "1"]
[TimeControl "1500+10"]

1. d4 {[%emt 0:00:00]} Nf6 {[%emt 0:00:00]} 2. e3 {[%emt 0:00:00]} e6 {[%emt 0:00:00]} 3. Bd3 {[%emt 0:00:00]} c5 {[%emt 0:00:00]} 4. c3 {[%emt 0:00:00]} b6 {[%emt 0:00:00]} 5. Nf3 {[%emt 0:00:01]} Bb7 {[%emt 0:00:00]} 6. O-O {[%emt 0:00:04]} Be7 {[%emt 0:00:00]} 7. Re1 {[%emt 0:00:57]} O-O {[%emt 0:00:04]} 8. e4 {[%emt 0:00:36]} d5 {[%emt 0:01:38]} 9. e5 {[%emt 0:00:28]} Nfd7 {[%emt 0:00:38]} 10. Bf4 {[%emt 0:04:50]} Nc6 {[%emt 0:00:14]} 11. Nbd2 {[%emt 0:00:58]} Rc8 {[%emt 0:00:19]} 12. Rc1 {[%emt 0:00:06]} cxd4 {[%emt 0:01:45]} 13. Nxd4 {[%emt 0:01:17]} Re8 {[%emt 0:06:19]} 14. N2f3 {[%emt 0:00:28]} Nf8 {[%emt 0:00:09]} 15. Qd2 {[%emt 0:02:03]} Ng6 {[%emt 0:00:08]} 16. Bxg6 {[%emt 0:01:19]} hxg6 {[%emt 0:00:05]} 17. Bg5 {[%emt 0:00:42]} Na5 {[%emt 0:00:36]} 18. Bxe7 {[%emt 0:01:10]} Rxe7 {[%emt 0:00:32]} 19. b3 {[%emt 0:00:39]} Nc6 {[%emt 0:05:21]} 20. Nxc6 {[%emt 0:00:05]} Bxc6 {[%emt 0:00:10]} 21. Nd4 {[%emt 0:00:06]} Rec7 {[%emt 0:00:14]} 22. Rc2 {[%emt 0:00:28]} Be8 {[%emt 0:00:47]} 23. Rec1 {[%emt 0:00:53]} Qe7 {[%emt 0:00:22]} 24. b4 {[%emt 0:00:24]} a5 {[%emt 0:00:43]} 25. a3 {[%emt 0:00:12]} Rc4 {[%emt 0:00:06]} 26. g3 {[%emt 0:02:02]} Qc7 {[%emt 0:00:06]} 27. f4 {[%emt 0:00:23]} Ba4 {[%emt 0:00:05]} 28. Rb2 {[%emt 0:01:32]} Rxc3 {[%emt 0:00:15]} 29. Rxc3 {[%emt 0:00:05]} Qxc3 {[%emt 0:00:01]} 30. Qxc3 {[%emt 0:00:06]} Rxc3 {[%emt 0:00:02]} 31. bxa5 {[%emt 0:02:29]} bxa5 {[%emt 0:00:05]} 32. Rb8+ {[%emt 0:00:03]} Kh7 {[%emt 0:00:01]} 33. Ra8 {[%emt 0:00:01]} Rd3 {[%emt 0:00:17]} 34. Ne2 {[%emt 0:00:39]} Bb5 {[%emt 0:00:02]} 35. Rxa5 {[%emt 0:01:01]} Bc4 {[%emt 0:00:20]} 36. Kh1 {[%emt 0:01:16]} d4 {[%emt 0:00:56]} 37. Rc5 {[%emt 0:01:01]} Rd1+ {[%emt 0:00:08]} 38. Kg2 {[%emt 0:00:22]} Bxe2 {[%emt 0:00:04]} 0-1